fUSD/lending_fUSD_20240122
["ID","MTS","AMOUNT","RATE_DAILY","PERIOD"]
[312467663,1705909865980,-500.0,0.00034,2]
[312467664,1705909865990,-1000.0,0.00034,4]
[312467665,1705909866000,-1030.70288063,0.00037589,3]
[312467666,1705909866010,-1721.82328336,0.00038355,4]
[312467667,1705909866020,-1469.73,0.00038356,2]
[312467668,1705909866030,-500.0,0.00038356,2]
[312467669,1705909866040,-482.83776208,0.00038904,7]
[312467670,1705909866050,-500.0,0.00038904,7]
[312467671,1705909866060,-505.60390862,0.00038904,7]
[312467672,1705909866070,-500.0,0.00038904,7]
[312467673,1705909866081,-778.71,0.00038904,7]
[312467674,1705909866091,-1403.42,0.00038904,7]
[312467675,1705909866101,-939.27,0.00038904,7]
[312467676,1705909866111,-1362.55,0.00038904,7]
[312467677,1705909866121,-1270.6,0.00038904,7]
[312467678,1705909866130,-500.0,0.00038904,7]
[312467679,1705909866139,-656.52,0.00038904,7]
[312467680,1705909866148,-500.0,0.00038904,7]
[312467681,1705909866158,-500.0,0.00038904,7]
[312467682,1705909866168,-500.0,0.00038904,7]
[312467683,1705909866178,-1088.82,0.00038904,7]
[312467684,1705909866188,-1000.0,0.00038904,7]
[312467685,1705909866198,-500.0,0.00038904,7]
[312467686,1705909866207,-500.0,0.00038904,7]
[312467687,1705909866217,-913.7,0.00038904,7]
[312467688,1705909866227,-500.0,0.00038904,7]
[312467689,1705909866236,-500.0,0.00038904,7]
[312467690,1705909866245,-1104.8,0.00038904,7]
[312467691,1705909866255,-500.0,0.00038904,7]
[312467692,1705909866264,-606.4469945,0.00038904,7]
[312467693,1705909866287,-444.7430055,0.00038904,7]
[312467694,1705909866297,-500.0,0.00038904,7]
[312467695,1705909866306,-500.0,0.00038904,7]
[312467696,1705909866316,-500.0,0.00038904,7]
[312467697,1705909866325,-500.0,0.00038904,7]
[312467698,1705909866334,-866.43,0.00038904,7]
[312467699,1705909866343,-282.22392488,0.00038904,7]
[312467700,1705909866356,-828.09607512,0.00038904,7]
[312467701,1705909866365,-187.22990311,0.00038904,7]
[312467702,1705909866374,-311.25133557,0.00038904,7]
[312467703,1705909866385,-188.74866443,0.00038904,7]
[312467704,1705909866395,-500.0,0.00038904,7]
[312467705,1705909866404,-500.0,0.00038904,7]
[312467706,1705909866414,-1119.6,0.00038904,7]
[312467707,1705909866424,-772.08,0.00038904,7]
[312467708,1705909866434,-500.0,0.00038904,7]
[312467709,1705909866443,-500.0,0.00038904,7]
[312467710,1705909866452,-526.28943113,0.00038904,7]
[312467711,1705909866461,-500.0,0.00038904,7]
[312467712,1705909866472,-500.0,0.00038904,7]
[312467713,1705909866481,-500.0,0.00038904,7]
[312467714,1705909866490,-1149.25,0.00038904,7]
[312467715,1705909866499,-772.73,0.00038904,7]
[312467716,1705909866511,-500.0,0.00038904,7]
[312467717,1705909866519,-963.03,0.00038904,7]
[312467718,1705909866528,-510.21617081,0.00038904,7]
[312467719,1705909866541,-500.0,0.00038904,7]
[312467720,1705909866551,-638.91,0.00038904,7]
[312467721,1705909866562,-500.0,0.00038904,7]
[312467722,1705909866571,-1228.45,0.00038904,7]
[312467723,1705909866580,-500.0,0.00038904,7]
[312467724,1705909866590,-904.63,0.00038904,7]
[312467725,1705909866600,-500.0,0.00038904,7]
[312467726,1705909866610,-500.0,0.00038904,7]
[312467727,1705909866621,-503.22755772,0.00038904,7]
[312467728,1705909866631,-1168.76,0.00038904,7]
[312467729,1705909866640,-309.75417506,0.00038904,7]
[312467730,1705909866650,-1225.64,0.00038904,7]
[312467731,1705909866659,-809.96,0.00038904,7]
[312467732,1705909866669,-500.0,0.00038904,7]
[312467733,1705909866678,-500.0,0.00038904,7]
[312467734,1705909866687,-500.0,0.00038904,7]
[312467735,1705909866696,-500.0,0.00038904,7]
[312467736,1705909866705,-500.0,0.00038904,7]
[312467737,1705909866715,-500.0,0.00038904,7]
[312467738,1705909866725,-500.0,0.00038904,7]
[312467739,1705909866735,-500.0,0.00038904,7]
[312467740,1705909866744,-500.0,0.00038904,7]
[312467741,1705909866754,-500.0,0.00038904,7]
[312467742,1705909866764,-500.0,0.00038904,7]
[312467743,1705909866773,-1341.53,0.00038904,7]
[312467744,1705909866783,-500.0,0.00038904,7]
[312467745,1705909866792,-1099.29,0.00038904,7]
[312467746,1705909866802,-750.62,0.00038904,7]
[312467747,1705909866812,-500.0,0.00038904,7]
[312467748,1705909866821,-537.79,0.00038904,7]
[312467749,1705909866830,-1088.61,0.00038904,7]
[312467750,1705909866840,-500.0,0.00038904,7]
[312467751,1705909866849,-856.76,0.00038904,7]
[312467752,1705909866858,-500.0,0.00038904,7]
[312467753,1705909866867,-1003.85,0.00038904,7]
[312467754,1705909866877,-503.98528411,0.00038904,7]
[312467755,1705909866886,-500.0,0.00038904,7]
[312467756,1705909866896,-500.0,0.00038904,7]
[312467757,1705909866905,-523.29768447,0.00038904,7]
[312467758,1705909866915,-962.2,0.00038904,7]
[312467759,1705909866924,-500.0,0.00038904,7]
[312467760,1705909866935,-500.0,0.00038904,7]
[312467761,1705909866945,-2389.26,0.00038904,7]
[312467762,1705909866954,-1261.65,0.00038904,7]
[312467763,1705909866965,-500.0,0.00038904,7]
[312467764,1705909866975,-500.0,0.00038904,7]
[312467765,1705909866984,-500.0,0.00038904,7]
[312467766,1705909866993,-636.94,0.00038904,7]
[312467767,1705909867003,-500.0,0.00038904,7]
[312467768,1705909867012,-500.0,0.00038904,7]
[312467769,1705909867022,-500.0,0.00038904,7]
[312467770,1705909867034,-500.0,0.00038904,7]
[312467771,1705909867043,-500.0,0.00038904,7]
[312467772,1705909867052,-500.0,0.00038904,7]
[312467773,1705909867062,-823.41,0.00038904,7]
[312467774,1705909867071,-500.0,0.00038904,7]
[312467775,1705909867081,-500.0,0.00038904,7]
[312467776,1705909867091,-500.0,0.00038904,7]
[312467777,1705909867103,-646.72,0.00038904,7]
[312467778,1705909867112,-500.0,0.00038904,7]
[312467779,1705909867121,-500.0,0.00038904,7]
[312467780,1705909867131,-500.0,0.00038904,7]
[312467781,1705909867140,-764.28,0.00038904,7]
[312467782,1705909867152,-500.0,0.00038904,7]
[312467783,1705909867162,-500.0,0.00038904,7]
[312467784,1705909867171,-500.0,0.00038904,7]
[312467785,1705909867180,-500.0,0.00038904,7]
[312467786,1705909867190,-500.0,0.00038904,7]
[312467787,1705909867200,-867.77,0.00038904,7]
[312467788,1705909867218,-1318.38,0.00038904,7]
[312467789,1705909867228,-500.0,0.00038904,7]
[312467790,1705909867238,-500.0,0.00038904,7]
[312467791,1705909867249,-500.0,0.00038904,7]
[312467792,1705909867258,-500.0,0.00038904,7]
[312467793,1705909867268,-500.0,0.00038904,7]
[312467794,1705909867279,-500.0,0.00038904,7]
[312467795,1705909867288,-500.0,0.00038904,7]
[312467796,1705909867298,-500.0,0.00038904,7]
[312467797,1705909867307,-500.0,0.00038904,7]
[312467798,1705909867318,-500.0,0.00038904,7]
[312467799,1705909867327,-500.0,0.00038904,7]
[312467800,1705909867336,-500.0,0.00038904,7]
[312467801,1705909867346,-500.0,0.00038904,7]
[312467802,1705909867355,-500.0,0.00038904,7]
[312467803,1705909867364,-688.84,0.00038904,7]
[312467804,1705909867374,-500.0,0.00038904,7]
[312467805,1705909867384,-500.0,0.00038904,7]
[312467806,1705909867393,-500.0,0.00038904,7]
[312467807,1705909867404,-500.0,0.00038904,7]
[312467808,1705909867413,-889.02,0.00038904,7]
[312467809,1705909867423,-500.0,0.00038904,7]
[312467810,1705909867432,-500.0,0.00038904,7]
[312467811,1705909867443,-500.0,0.00038904,7]
[312467812,1705909867452,-500.0,0.00038904,7]
[312467813,1705909867462,-1223.8,0.00038904,7]
[312467814,1705909867471,-500.0,0.00038904,7]
[312467815,1705909867480,-500.0,0.00038904,7]
[312467816,1705909867490,-500.0,0.00038904,7]
[312467817,1705909867499,-519.79,0.00038904,7]
[312467818,1705909867510,-1398.2,0.00038904,7]
[312467819,1705909867519,-983.51,0.00038904,7]
[312467820,1705909867529,-500.0,0.00038904,7]
[312467821,1705909867540,-396.4251728,0.00038904,7]
[312467822,1705909867560,-500.0,0.00038904,7]
[312467823,1705909867570,-500.0,0.00038904,7]
[312467824,1705909867579,-500.0,0.00038904,7]
[312467825,1705909867589,-500.0,0.00038904,7]
[312467826,1705909867600,-500.0,0.00038904,7]
[312467827,1705909867610,-500.0,0.00038904,7]
[312467828,1705909867621,-500.0,0.00038904,7]
[312467829,1705909867631,-1140.25,0.00038904,7]
[312467830,1705909867641,-849.3,0.00038904,7]
[312467831,1705909867650,-1096.6,0.00038904,7]
[312467832,1705909867660,-500.0,0.00038904,7]
[312467833,1705909867670,-500.0,0.00038904,7]
[312467834,1705909867679,-500.0,0.00038904,7]
[312467835,1705909867688,-930.04,0.00038904,2]
[312467836,1705909867706,-500.0,0.00038904,7]
[312467837,1705909867715,-500.0,0.00038904,7]
[312467838,1705909867724,-500.0,0.00038904,7]
[312467839,1705909867734,-500.4,0.00038904,7]
[312467840,1705909867746,-500.0,0.00038904,7]
[312467841,1705909867758,-942.5,0.00038904,7]
[312467842,1705909867767,-1051.92,0.00038904,7]
[312467843,1705909867779,-1459.45,0.00038904,7]
[312467844,1705909867788,-1261.69,0.00038904,7]
[312467845,1705909867797,-500.0,0.00038904,7]
[312467846,1705909867806,-928.67,0.00038904,7]
[312467847,1705909867815,-867.23,0.00038904,7]
[312467848,1705909867825,-500.0,0.00038904,7]
[312467849,1705909867834,-500.0,0.00038904,7]
[312467850,1705909867843,-500.0,0.00038904,7]
[312467851,1705909867853,-743.49,0.00038904,7]
[312467852,1705909867862,-502.27,0.00038904,7]
[312467853,1705909867871,-1052.49,0.00038904,7]
[312467854,1705909867880,-500.0,0.00038904,7]
[312467855,1705909867889,-1629.26,0.00038904,7]
[312467856,1705909867898,-500.0,0.00038904,7]
[312467857,1705909867907,-500.0,0.00038904,7]
[312467858,1705909867922,-419.12217479,0.00038904,7]
[312467859,1705909867931,-500.0,0.00038904,7]
[312467860,1705909867941,-1151.12,0.00038904,7]
[312467861,1705909867950,-500.0,0.00038904,7]
[312467862,1705909867959,-741.87,0.00038904,7]
[312467863,1705909867969,-500.0,0.00038904,7]
[312467864,1705909867978,-1259.28,0.00038904,7]
[312467865,1705909867988,-500.0,0.00038904,7]
[312467866,1705909867997,-500.0,0.00038904,7]
[312467867,1705909868007,-1343.05,0.00038904,7]
[312467868,1705909868017,-500.0,0.00038904,7]
[312467869,1705909868027,-500.0,0.00038904,7]
[312467870,1705909868037,-500.0,0.00038904,7]
[312467871,1705909868047,-502.42562595,0.00038904,7]
[312467872,1705909868057,-500.0,0.00038904,7]
[312467873,1705909868066,-763.51,0.00038904,7]
[312467874,1705909868076,-500.0,0.00038904,7]
[312467875,1705909868086,-849.96,0.00038904,7]
[312467876,1705909868095,-512.65604847,0.00038904,7]
[312467877,1705909868106,-500.0,0.00038904,7]
[312467878,1705909868116,-500.0,0.00038904,7]
[312467879,1705909868125,-500.0,0.00038904,7]
[312467880,1705909868135,-500.0,0.00038904,7]
[312467881,1705909868145,-711.97,0.00038904,7]
[312467882,1705909868154,-500.0,0.00038904,7]
[312467883,1705909868164,-500.0,0.00038904,7]
[312467884,1705909868174,-500.0,0.00038904,7]
[312467885,1705909868183,-580.47,0.00038904,7]
[312467886,1705909868193,-650.66,0.00038904,7]
[312467887,1705909868203,-591.07,0.00038904,7]
[312467888,1705909868212,-500.0,0.00038904,7]
[312467889,1705909868222,-841.34,0.00038904,7]
[312467890,1705909868232,-522.6,0.00038904,2]
[312467891,1705909868241,-500.0,0.00038904,7]
[312467892,1705909868250,-571.99,0.00038904,7]
[312467893,1705909868261,-865.96,0.00038904,7]
[312467894,1705909868271,-1404.2,0.00038904,7]
[312467895,1705909868280,-500.0,0.00038904,7]
[312467896,1705909868289,-1022.51,0.00038904,7]
[312467897,1705909868299,-500.0,0.00038904,7]
[312467898,1705909868308,-500.0,0.00038904,7]
[312467899,1705909868317,-1243.56,0.00038904,7]
[312467900,1705909868327,-500.0,0.00038904,7]
[312467901,1705909868337,-500.0,0.00038904,7]
[312467902,1705909868347,-500.0,0.00038904,7]
[312467903,1705909868357,-500.0,0.00038904,7]
[312467904,1705909868366,-500.0,0.00038904,7]
[312467905,1705909868376,-500.0,0.00038904,7]
[312467906,1705909868386,-694.11,0.00038904,7]
[312467907,1705909868396,-500.0,0.00038904,7]
[312467908,1705909868406,-500.0,0.00038904,7]
[312467909,1705909868415,-601.84,0.00038904,7]
[312467910,1705909868425,-547.33121244,0.00038904,7]
[312467911,1705909868435,-500.0,0.00038904,7]
[312467912,1705909868444,-500.0,0.00038904,7]
[312467913,1705909868454,-870.37,0.00038904,7]
[312467914,1705909868464,-524.02,0.00038904,7]
[312467915,1705909868473,-500.0,0.00038904,7]
[312467916,1705909868483,-500.0,0.00038904,7]
[312467917,1705909868493,-500.0,0.00038904,7]
[312467918,1705909868502,-500.0,0.00038904,7]
[312467919,1705909868517,-500.0,0.00038904,7]
[312467920,1705909868732,-500.0,0.00038904,7]
[312467921,1705909868785,-1622.62,0.00038904,7]
[312467922,1705909868795,-500.0,0.00038904,7]
[312467923,1705909868804,-1458.35,0.00038904,7]
[312467924,1705909868814,-500.0,0.00038904,7]
[312467925,1705909868824,-500.0,0.00038904,7]
[312467926,1705909868834,-1254.73,0.00038904,7]
[312467927,1705909868846,-500.0,0.00038904,7]
[312467928,1705909868857,-500.0,0.00038904,7]
[312467929,1705909868869,-500.0,0.00038904,7]
[312467930,1705909868879,-500.0,0.00038904,7]
[312467931,1705909868890,-1146.83,0.00038904,7]
[312467932,1705909868904,-504.45313418,0.00038904,7]
[312467933,1705909868914,-1502.04,0.00038904,7]
[312467934,1705909868924,-500.0,0.00038904,7]
[312467935,1705909868948,-500.0,0.00038904,7]
[312467936,1705909868960,-500.0,0.00038904,7]
[312467937,1705909868983,-500.0,0.00038904,7]
[312467938,1705909868995,-500.0,0.00038904,7]
[312467939,1705909869008,-500.0,0.00038904,7]
[312467940,1705909869019,-729.63,0.00038904,7]
[312467941,1705909869033,-989.43,0.00038904,7]
[312467942,1705909869044,-809.92,0.00038904,7]
[312467943,1705909869054,-570.51,0.00038904,7]
[312467944,1705909869078,-500.0,0.00038904,7]
[312467945,1705909869088,-500.0,0.00038904,7]
[312467946,1705909869098,-519.23,0.00038904,7]
[312467947,1705909869108,-513.68639892,0.00038904,7]
[312467948,1705909869117,-1368.69,0.00038904,7]
[312467949,1705909869128,-528.61409253,0.00038904,7]
[312467950,1705909869141,-500.0,0.00038904,7]
[312467951,1705909869150,-1288.44,0.00038904,7]
[312467952,1705909869170,-877.4,0.00038904,7]
[312467953,1705909869180,-500.0,0.00038904,7]
[312467954,1705909869193,-573.41,0.00038904,7]
[312467955,1705909869205,-500.0,0.00038904,7]
[312467956,1705909869215,-500.0,0.00038904,7]
[312467957,1705909869239,-500.0,0.00038904,7]
[312467958,1705909869250,-1539.01,0.00038904,7]
[312467959,1705909869262,-500.0,0.00038904,7]
[312467960,1705909869274,-500.0,0.00038904,7]
[312467961,1705909869286,-500.0,0.00038904,7]
[312467962,1705909869299,-500.0,0.00038904,7]
[312467963,1705909869310,-500.0,0.00038904,7]
[312467964,1705909869321,-500.0,0.00038904,7]
[312467965,1705909869332,-529.44,0.00038904,7]
[312467966,1705909869345,-1408.64,0.00038904,7]
[312467967,1705909869357,-1430.59,0.00038904,7]
[312467968,1705909869368,-767.46,0.00038904,7]
[312467969,1705909869378,-521.49,0.00038904,7]
[312467970,1705909869386,-500.0,0.00038904,7]
[312467971,1705909869394,-500.0,0.00038904,7]
[312467972,1705909869403,-500.0,0.00038904,7]
[312467973,1705909869412,-508.83686943,0.00038904,7]
[312467974,1705909869430,-500.0,0.00038904,7]
[312467975,1705909869439,-582.14850992,0.00038904,7]
[312467976,1705909869449,-500.0,0.00038904,7]
[312467977,1705909869458,-851.82,0.00038904,7]
[312467978,1705909869467,-500.0,0.00038904,7]
[312467979,1705909869478,-540.76,0.00038904,7]
[312467980,1705909869489,-500.0,0.00038904,7]
[312467981,1705909869497,-970.84,0.00038904,7]
[312467982,1705909869507,-720.93,0.00038904,7]
[312467983,1705909869516,-517.34382912,0.00038904,7]
[312467984,1705909869526,-1444.57,0.00038904,7]
[312467985,1705909869537,-500.0,0.00038904,7]
[312467986,1705909869547,-522.92332555,0.00038904,7]
[312467987,1705909869556,-500.0,0.00038904,7]
[312467988,1705909869565,-500.0,0.00038904,7]
[312467989,1705909869574,-500.0,0.00038904,7]
[312467990,1705909869583,-500.0,0.00038904,7]
[312467991,1705909869592,-500.0,0.00038904,7]
[312467992,1705909869601,-618.71,0.00038904,7]
[312467993,1705909869622,-500.0,0.00038904,7]
[312467994,1705909869631,-500.0,0.00038904,7]
[312467995,1705909869652,-500.99480159,0.00038904,7]
[312467996,1705909869668,-500.0,0.00038904,7]
[312467997,1705909869677,-988.63,0.00038904,7]
[312467998,1705909869688,-555.94,0.00038904,7]
[312467999,1705909869697,-500.0,0.00038904,7]
[312468000,1705909869707,-500.0,0.00038904,7]
[312468001,1705909869717,-500.0,0.00038904,7]
[312468002,1705909869728,-522.43790061,0.00038904,7]
[312468003,1705909869738,-793.05,0.00038904,7]
[312468004,1705909869749,-1103.32,0.00038904,7]
[312468005,1705909869758,-500.0,0.00038904,7]
[312468006,1705909869769,-500.0,0.00038904,7]
[312468007,1705909869780,-1434.53,0.00038904,7]
[312468008,1705909869789,-500.0,0.00038904,7]
[312468009,1705909869804,-500.0,0.00038904,7]
[312468010,1705909869825,-500.0,0.00038904,7]
[312468011,1705909869840,-500.0,0.00038904,7]
[312468012,1705909869849,-500.0,0.00038904,7]
[312468013,1705909869860,-735.21,0.00038904,7]
[312468014,1705909869870,-1301.7,0.00038904,7]
[312468015,1705909869880,-200.0,0.00038904,7]
[312468016,1705909869892,-508.7715432,0.00038904,7]
[312468017,1705909869901,-500.0,0.00038904,7]
[312468018,1705909869910,-500.0,0.00038904,7]
[312468019,1705909869920,-500.0,0.00038904,7]
[312468020,1705909869929,-511.25146511,0.00038904,7]
[312468021,1705909869959,-543.35,0.00038904,7]
[312468022,1705909869970,-812.46,0.00038904,7]
[312468023,1705909869991,-1019.55,0.00038904,7]
[312468024,1705909870002,-500.0,0.00038904,7]
[312468025,1705909870015,-500.0,0.00038904,7]
[312468026,1705909870027,-512.01,0.00038904,7]
[312468027,1705909870037,-512.66629235,0.00038904,7]
[312468028,1705909870053,-500.0,0.00038904,7]
[312468029,1705909870064,-1969.35,0.00038904,7]
[312468030,1705909870074,-500.0,0.00038904,7]
[312468031,1705909870085,-1195.23,0.00038904,7]
[312468032,1705909870094,-878.59,0.00038904,7]
[312468033,1705909870105,-250.0,0.00038904,7]
[312468034,1705909870114,-1063.69,0.00038904,7]
[312468035,1705909870124,-500.0,0.00038904,7]
[312468036,1705909870133,-500.0,0.00038904,7]
[312468037,1705909870143,-500.0,0.00038904,7]
[312468038,1705909870153,-500.0,0.00038904,7]
[312468039,1705909870162,-1529.76,0.00038904,7]
[312468040,1705909870172,-500.0,0.00038904,7]
[312468041,1705909870182,-500.0,0.00038904,7]
[312468042,1705909870191,-500.0,0.00038904,7]
[312468043,1705909870201,-500.0,0.00038904,7]
[312468044,1705909870210,-510.84790043,0.00038904,7]
[312468045,1705909870220,-500.0,0.00038904,7]
[312468046,1705909870230,-500.0,0.00038904,7]
[312468047,1705909870240,-500.0,0.00038904,7]
[312468048,1705909870250,-1166.99,0.00038904,7]
[312468049,1705909870260,-500.0,0.00038904,7]
[312468050,1705909870269,-500.0,0.00038904,7]
[312468051,1705909870279,-500.0,0.00038904,7]
[312468052,1705909870288,-500.0,0.00038904,7]
[312468053,1705909870297,-1673.2,0.00038904,7]
[312468054,1705909870306,-1375.6,0.00038904,7]
[312468055,1705909870315,-548.5760812,0.00038904,7]
[312468056,1705909870324,-500.0,0.00038904,7]
[312468057,1705909870333,-500.0,0.00038904,7]
[312468058,1705909870342,-500.0,0.00038904,7]
[312468059,1705909870351,-786.03,0.00038904,7]
[312468060,1705909870361,-521.78177273,0.00038904,7]
[312468061,1705909870370,-500.0,0.00038904,7]
[312468062,1705909870378,-500.0,0.00038904,7]
[312468063,1705909870388,-500.0,0.00038904,7]
[312468064,1705909870397,-500.0,0.00038904,7]
[312468065,1705909870406,-500.0,0.00038904,7]
[312468066,1705909870415,-500.0,0.00038904,7]
[312468067,1705909870425,-655.96,0.00038904,7]
[312468068,1705909870434,-500.0,0.00038904,7]
[312468069,1705909870443,-500.0,0.00038904,7]
[312468070,1705909870452,-500.0,0.00038904,7]
[312468071,1705909870462,-500.0,0.00038904,7]
[312468072,1705909870472,-1045.54,0.00038904,7]
[312468073,1705909870481,-747.38,0.00038904,7]
[312468074,1705909870489,-500.0,0.00038904,7]
[312468075,1705909870498,-500.0,0.00038904,7]
[312468076,1705909870508,-500.0,0.00038904,7]
[312468077,1705909870517,-532.61,0.00038904,7]
[312468078,1705909870526,-500.0,0.00038904,7]
[312468079,1705909870537,-1290.87,0.00038904,7]
[312468080,1705909870546,-1198.09,0.00038904,7]
[312468081,1705909870556,-474.14802956,0.00038904,7]
[312468082,1705909870565,-1356.28,0.00038904,7]
[312468083,1705909870575,-500.0,0.00038904,7]
[312468084,1705909870583,-500.0,0.00038904,7]
[312468085,1705909870592,-500.0,0.00038904,7]
[312468086,1705909870601,-1117.63,0.00038904,7]
[312468087,1705909870611,-1245.51,0.00038904,7]
[312468088,1705909870621,-500.0,0.00038904,7]
[312468089,1705909870631,-958.46,0.00038904,7]
[312468090,1705909870641,-500.0,0.00038904,7]
[312468091,1705909870650,-500.0,0.00038904,7]
[312468092,1705909870659,-500.0,0.00038904,7]
[312468093,1705909870668,-888.98,0.00038904,7]
[312468094,1705909870677,-500.0,0.00038904,7]
[312468095,1705909870686,-500.0,0.00038904,7]
[312468096,1705909870695,-1210.92,0.00038904,7]
[312468097,1705909870705,-500.0,0.00038904,7]
[312468098,1705909870715,-578.3,0.00038904,7]
[312468099,1705909870726,-502.21315926,0.00038904,7]
[312468100,1705909870734,-814.24,0.00038904,7]
[312468101,1705909870743,-500.0,0.00038904,7]
[312468102,1705909870752,-615.86,0.00038904,7]
[312468103,1705909870761,-500.0,0.00038904,7]
[312468104,1705909870770,-228.7379933,0.00038904,7]
[312468105,1705909870780,-500.0,0.00038904,7]
[312468106,1705909870789,-775.15,0.00038904,7]
[312468107,1705909870798,-514.8118762,0.00038904,7]
[312468108,1705909870808,-911.45,0.00038904,7]
[312468109,1705909870817,-500.0,0.00038904,7]
[312468110,1705909870826,-500.0,0.00038904,7]
[312468111,1705909870835,-500.0,0.00038904,7]
[312468112,1705909870844,-1250.88,0.00038904,7]
[312468113,1705909870853,-500.0,0.00038904,7]
[312468114,1705909870863,-1040.12,0.00038904,7]
[312468115,1705909870872,-669.4,0.00038904,7]
[312468116,1705909870881,-788.8,0.00038904,7]
[312468117,1705909870891,-500.0,0.00038904,7]
[312468118,1705909870900,-500.0,0.00038904,7]
[312468119,1705909870910,-500.0,0.00038904,7]
[312468120,1705909870919,-1639.08,0.00038904,7]
[312468121,1705909870929,-720.47,0.00038904,7]
[312468122,1705909870938,-500.0,0.00038904,7]
[312468123,1705909870948,-819.74,0.00038904,7]
[312468124,1705909870958,-500.0,0.00038904,7]
[312468125,1705909870967,-1250.13,0.00038904,7]
[312468126,1705909870978,-500.0,0.00038904,7]
[312468127,1705909870987,-1066.16,0.00038904,7]
[312468128,1705909870997,-500.0,0.00038904,7]
[312468129,1705909871007,-994.2,0.00038904,7]
[312468130,1705909871016,-500.0,0.00038904,7]
[312468131,1705909871026,-847.33,0.00038904,7]
[312468132,1705909871035,-1463.68,0.00038904,7]
[312468133,1705909871045,-500.0,0.00038904,7]
[312468134,1705909871054,-716.96,0.00038904,7]
[312468135,1705909871064,-500.0,0.00038904,7]
[312468136,1705909871074,-500.0,0.00038904,7]
[312468137,1705909871084,-509.29015052,0.00038904,7]
[312468138,1705909871093,-500.0,0.00038904,7]
[312468139,1705909871103,-500.0,0.00038904,7]
[312468140,1705909871112,-1726.85,0.00038904,7]
[312468141,1705909871121,-1008.81,0.00038904,7]
[312468142,1705909871131,-500.0,0.00038904,7]
[312468143,1705909871140,-500.0,0.00038904,7]
[312468144,1705909871149,-500.0,0.00038904,7]
[312468145,1705909871158,-500.0,0.00038904,7]
[312468146,1705909871169,-404.72,0.00038904,7]
[312468147,1705909871178,-500.0,0.00038904,7]
[312468148,1705909871188,-500.0,0.00038904,7]
[312468149,1705909871198,-500.0,0.00038904,7]
[312468150,1705909871207,-500.0,0.00038904,7]
[312468151,1705909871216,-500.0,0.00038904,7]
[312468152,1705909871226,-501.02210872,0.00038904,7]
[312468153,1705909871235,-500.0,0.00038904,7]
[312468154,1705909871245,-1751.31,0.00038904,7]
[312468155,1705909871254,-500.0,0.00038904,7]
[312468156,1705909871263,-841.26,0.00038904,7]
[312468157,1705909871273,-500.0,0.00038904,7]
[312468158,1705909871282,-1159.55,0.00038904,7]
[312468159,1705909871292,-500.0,0.00038904,7]
[312468160,1705909871301,-500.0,0.00038904,7]
[312468161,1705909871310,-6629.49,0.00038904,7]
[312468162,1705909871320,-500.0,0.00038904,7]